Workbook

Sheet Summary
A1: SUMMARY
A2: S. No. | B2: Particulars | C2: Amount (Rs.)
A3: 1 | B3: Civil Work Cost (Both the shed) | C3: ='SHED 24.5 X 39.950M'!K172+'15M X 15M '!K169 -> 0
A4: 2 | B4: Toilet Block | C4: ='TOILET BLOCK '!K133 -> 0
A5: 3 | B5: Electrical Cost | C5: =ELECTRICAL!F280 -> 0
A6: 4 | B6: Pavers Block | C6: ='PAVER BLOCK '!J10 -> 0
A7: Sub Total | C7: =SUM(C3:C6) -> 0
A8: GST @ 18% | C8: =C7*18% -> 0
A9: TOTAL AMOUNT | C9: =C7+C8 -> 0

Sheet SHED 24.5 X 39.950M
A1: MRF Shed-UJJAIN
A2: Detailed Estimate
A3: S.No | B3: Area detail | D3: Unit | E3: Num | F3: L | G3: B | H3: H | I3: Qty | J3: Unit Rate | K3: Amount
A4: (A) | B4: SUBSTRUCTURE
A5: A) | B5: Excavation | C5: Earth work in excavation by mechanical means (Hydraulic excavator)/ manual means over areas (exceeding 30 cm in depth, 1.5 m in width as well as 10 sqm on plan) including getting out and disposal of excavated earth lead upto 50 m and lift upto 1.5 m, as directed by Engineer-incharge.
C6: Ordinary rock
C7: Main Plant Shed
C8: FC1 | D8: cum | E8: 16 | F8: =2.3+0.3 -> 2.60 | G8: =2.1+0.3 -> 2.40 | H8: 2.1 | I8: =(E8*F8*G8*H8) -> 209.66
C9: FC2 | D9: cum | E9: 4 | F9: =2.2+0.3 -> 2.50 | G9: =2+0.3 -> 2.30 | H9: 2.1 | I9: =(E9*F9*G9*H9) -> 48.30
G10: TOTAL | I10: =I8+I9 -> 257.96
B11: Backfilling | C11: Filling available excavated earth (excluding rock) in trenches, plinth, sides of foundations etc. in layers not exceeding 20cm in depth, consolidating each deposited layer by ramming and watering, lead up to 50 m and lift upto 1.5 m. | D11: cum | E11: 1 | I11: 184.35
A12: B) | B12: Shuttering | C12: Centering and shuttering including strutting, propping etc. and removal of form work for :
B13: PCC | C13: Foundations, footings, bases for columns
C14: Main Plant Shed
C15: FC1 | D15: Sqm | E15: 16 | F15: =2*F8+2*G8 -> 10.00 | H15: 0.15 | I15: =(E15*F15*H15) -> 24.00
C16: FC2 | D16: Sqm | E16: 4 | F16: =2*F9+2*G9 -> 9.60 | H16: 0.15 | I16: =(E16*F16*H16) -> 5.76
B17: Footing | C17: Foundations, footings, bases for columns
C18: Main Plant Shed
C19: FC1 | D19: Sqm | E19: 16 | F19: =(2*F8-0.3)+(2*G8-0.3) -> 9.40 | H19: 0.45 | I19: =(E19*F19*H19) -> 67.68
C20: FC2 | D20: Sqm | E20: 4 | F20: =(2*F9-0.3)+(2*G9-0.3) -> 9.00 | H20: 0.45 | I20: =(E20*F20*H20) -> 16.20
B21: Column | C21: Columns, piers, abutments, pillars, posts and struts
C22: Main Plant Shed
C23: C1 | D23: Sqm | E23: 16 | F23: =0.6+0.6+0.8+0.8 -> 2.8 | H23: 2.5 | I23: =(E23*F23*H23) -> 112.00
C24: C2 | D24: Sqm | E24: 4 | F24: =0.5+0.5+0.6+0.6 -> 2.2 | H24: 2.5 | I24: 22.00
B25: Beam | C25: Columns, piers, abutments, pillars, posts and struts
C28: Ground Beam
C29: GB1 | D29: Sqm | E29: 2 | F29: =24+24+39.551+39.551 -> 127.102 | H29: 0.6 | I29: =E29*F29*H29 -> 152.52
C30: TOP BEAM
C31: B1 | D31: Sqm | E31: 2 | F31: =24+39.551+16.75+32.301 -> 112.602 | H31: =H20 -> 0.45 | I31: 101.34
A34: C) | B34: Concrete | C34: Providing and laying in position cement concrete of specified grade excluding the cost of centering and shuttering - All work up to plinth level :
B35: PCC | C35: 1:3:6 (1 cement : 3 coarse sand (zone-III) : 6 graded stone aggregate 20 mm nominal size)
C36: Main Plant Shed
C37: FC1 | D37: cum | E37: 16 | F37: =F8 -> 2.60 | G37: =G8 -> 2.40 | H37: 0.15 | I37: =(E37*F37*G37*H37) -> 14.98
C38: FC2 | D38: cum | E38: 4 | F38: =F9 -> 2.50 | G38: =G9 -> 2.30 | H38: 0.15 | I38: =(E38*F38*G38*H38) -> 3.45
B40: Footing | C40: 1:1½:3 (1 cement : 1½ coarse sand (zone-III) : 3 graded stone aggregate 20 mm nominal size).
C41: Main Plant Shed
C42: FC1 | D42: cum | E42: 16 | F42: =F37-0.3 -> 2.30 | G42: =G37-0.3 -> 2.10 | H42: =H19 -> 0.45 | I42: =(E42*F42*G42*H42) -> 34.78
C43: FC2 | D43: cum | E43: 4 | F43: =F38-0.3 -> 2.20 | G43: =G38-0.3 -> 2.00 | H43: =H20 -> 0.45 | I43: 7.92
B44: Column | C44: 1:1½:3 (1 cement : 1½ coarse sand (zone-III) : 3 graded stone aggregate 20 mm nominal size).
C45: Main Plant Shed
C46: C1 | D46: cum | E46: 16 | F46: 0.6 | G46: 0.8 | H46: =2.5+1.2 -> 3.7 | I46: =(E46*F46*G46*H46) -> 28.42
C47: C2 | D47: cum | E47: 4 | F47: 0.5 | G47: 0.6 | H47: =2.5+1.2 -> 3.7 | I47: 4.44
B48: GROUND BEAM | C48: 1:1½:3 (1 cement : 1½ coarse sand (zone-III) : 3 graded stone aggregate 20 mm nominal size).
C50: GB1 | D50: cum | E50: 1 | F50: =24+24+39.551+39.551 -> 127.102 | G50: 0.2 | H50: =H29 -> 0.6 | I50: =F50*G50*H50*E50 -> 15.25
B52: TOP BEAM 2.5M LVL | C52: 1:1½:3 (1 cement : 1½ coarse sand (zone-III) : 3 graded stone aggregate 20 mm nominal size).
C54: B1 | D54: cum | E54: 1 | F54: =24+39.551+16.75+32.301 -> 112.602 | G54: 0.2 | H54: 0.6 | I54: =F54*G54*H54*E54 -> 13.51
B56: TMT Bar | C56: Steel reinforcement for R.C.C. work including straightening, cutting, bending, placing in position and binding all complete upto plinth level
C57: Thermo-Mechanically Treated bars of grade Fe-500D or more.
C59: Main Plant Shed
B60: FOOTING | C60: FC1
C61: (BOTTOM)
C62: ALONG B-10# | D62: KG | E62: 16 | F62: 2.10 | G62: =F62/0.15 -> 14 | H62: 0.62 | I62: =E62*F62*G62*H62 -> 291.65
C63: ALONG L-10# | D63: KG | E63: 16 | F63: 2.30 | G63: =F63/0.15 -> 15 | H63: 0.62 | I63: =E63*F63*G63*H63 -> 349.85
C64: (TOP)
C65: ALONG B | D65: KG | E65: 16 | F65: 2.10 | G65: =F65/0.25 -> 8 | H65: 0.62 | I65: =E65*F65*G65*H65 -> 174.99
C66: ALONG L | D66: KG | E66: 16 | F66: 2.30 | G66: =F66/0.25 -> 9 | H66: 0.62 | I66: =E66*F66*G66*H66 -> 209.91
C68: FC2
C69: (BOTTOM)
C70: ALONG B-10# | D70: KG | E70: 4 | F70: 2.00 | G70: =F70/0.15 -> 13 | H70: 0.62 | I70: =E70*F70*G70*H70 -> 66.13
C71: ALONG L-10# | D71: KG | E71: 4 | F71: 2.20 | G71: =F71/0.15 -> 15 | H71: 0.62 | I71: =E71*F71*G71*H71 -> 80.02
C72: (TOP)
C73: ALONG B-10# | D73: KG | E73: 4 | F73: =F70 -> 2.00 | G73: =F73/0.25 -> 8 | H73: 0.62 | I73: =E73*F73*G73*H73 -> 39.68
C74: ALONG L-10# | D74: KG | E74: 4 | F74: =F71 -> 2.20 | G74: =F74/0.25 -> 9 | H74: 0.62 | I74: =E74*F74*G74*H74 -> 48.01
B76: COLUMN
C78: C1 | D78: KG | E78: 16 | F78: =0.55+1.8+2.5 -> 4.85 | G78: 18 | H78: 1.58 | I78: =E78*F78*G78*H78 -> 2206.94
C79: STRP (8#) | D79: KG | E79: 16 | F79: =2.5 -> 2.50 | G79: =4.85/0.15 -> 32 | H79: 0.39 | I79: 504.40
C80: STRP (8#) | D80: KG | E80: 16 | F80: =0.12+0.12+0.52+0.52+0.4 -> 1.68 | G80: =4.85/0.15 -> 32 | H80: 0.3 | I80: 260.74
C81: STRP (8#) | D81: KG | E81: 16 | F81: =0.12+0.12+0.52+0.52+0.4 -> 1.68 | G81: 32 | H81: 0.39 | I81: 338.96
C82: STRP (8#) | D82: KG | E82: 16 | F82: =0.28+0.28+0.72+0.72+0.02 -> 2.02 | G82: 32 | H82: 0.3 | I82: 313.50
C83: STRP (8#) | D83: KG | E83: 16 | F83: 1.00 | G83: 32 | H83: 0.39 | I83: 201.76
C84: C2 | D84: KG | E84: 4 | F84: 4.85 | G84: 16 | H84: 1.58 | I84: 490.43
C85: STRP (8#) | D85: KG | E85: 4 | F85: =0.42+0.42+0.58+0.58+0.02 -> 2.02 | G85: =4.85/0.15 -> 32 | H85: 0.39 | I85: 101.89
C86: STRP (8#) | D86: KG | E86: 4 | F86: =0.23+0.23+0.52+0.52+0.02 -> 1.52 | G86: =4.85/0.15 -> 32 | H86: 0.3 | I86: 58.98
C87: STRP (8#) | D87: KG | E87: 4 | F87: =0.52+0.02 -> 0.54 | G87: 32 | H87: 0.39 | I87: 27.24
C88: STRP (8#) | D88: KG | E88: 4 | F88: =0.52+0.02 -> 0.54 | G88: 32 | H88: 0.39 | I88: 27.24
B90: GROUND BEAM | C90: GB
C91: TOP STRAIGHT 16 # | D91: KG | E91: 1 | F91: =24+24+39.551+39.551 -> 127.102 | G91: 2 | H91: 1.58 | I91: =E91*F91*G91*H91 -> 401.64
C92: TOP EXTRA 16# | D92: KG | E92: 1 | F92: =(F91/3)*2+0.4 -> 85.13 | G92: 2 | H92: 1.58 | I92: 269.03
C93: BOTTOM STRAIGHT 16# | D93: KG | E93: 1 | F93: 127.10 | G93: 2 | H93: 1.58 | I93: 401.64
C94: BOTTOM EXTRA 16# | D94: KG | E94: 1 | F94: =(F93/7)*2+0.4 -> 36.71 | G94: 2 | H94: 1.58 | I94: =E94*F94*G94*H94 -> 116.02
C95: SFR 12# | D95: KG | E95: 1 | F95: =F91 -> 127.10 | G95: 2 | H95: 0.89 | I95: 226.24
C96: STRP 8# | D96: KG | E96: 1 | F96: =F103 -> 1.38 | G96: 850 | H96: 0.4 | I96: 469.20
B98: TOP BEAM | C98: B
C99: TOP STRAIGHT 16 # | D99: KG | E99: 1 | F99: =24+39.551+16.75+32.301 -> 112.602 | G99: 2 | H99: 1.58 | I99: =E99*F99*G99*H99 -> 355.82
C100: TOP EXTRA 16# | D100: KG | E100: 1 | F100: =(F99/3)*2+0.4 -> 75.47 | G100: 2 | H100: 1.58 | I100: 238.48
C101: BOTTOM STRAIGHT 16# | D101: KG | E101: 1 | F101: =F99 -> 112.60 | G101: 2 | H101: 1.58 | I101: 355.82
C102: BOTTOM EXTRA 16# | D102: KG | E102: 1 | F102: =(F101/7)*2+0.4 -> 32.57 | G102: 2 | H102: 1.58 | I102: 102.93
C103: STRP 8# | D103: KG | E103: 1 | F103: =0.14+0.14+0.54+0.54+0.02 -> 1.38 | G103: 750 | H103: 0.4 | I103: =E103*F103*G103*H103 -> 414.00
D105: KG | F105: Total STEEL | I105: =SUM(I62:I103) -> 9143.13
A107: (B) | B107: SUPERSTRUCTURE
A108: A) | B108: Plinth fill | C108: Plinth fill with Stone Dust | D108: cum | E108: 1 | F108: 24.00 | G108: 39.55 | H108: 0.45 | I108: =E108*F108*G108*H108 -> 427.15
G109: Total Qty= | I109: =I108 -> 427.15
A111: B) | B111: Flooring | C111: Cement concrete flooring 1:2:4 (1 cement : 2 coarse sand : 4 graded stone aggregate) finished with a floating coat of neat cement, including cement slurry, but excluding the cost of nosing of steps etc. complete.
D112: cum | E112: 1 | F112: 24.00 | G112: 39.55 | H112: 0.1 | I112: =E112*F112*G112*H112 -> 94.92
G113: Total Qty= | I113: =SUM(I112:I112) -> 94.92
A115: C) | B115: Brickwork | C115: Brick work with common burnt clay machine moulded perforated bricks of class designation 12.5 conforming to IS: 2222 in superstructure above plinth level up to floor five level in cement mortar 1:6 (1 cement : 6 coarse sand) :
C116: With Modular bricks
C118: 9" | D118: cum | E118: 1 | F118: =24+24+39.551+9.551 -> 97.10 | G118: 0.23 | H118: 2.5 | I118: =E118*F118*G118*H118 -> 55.83
C119: Dedcut Shutter | D119: Nos. | E119: 2 | F119: 5.00 | G119: 0.23 | H119: 2.5 | I119: =E119*F119*G119*H119 -> 5.75
I120: =I118-I119 -> 50.08
A123: D) | B123: Plaster | C123: 12 mm cement plaster of mix
C124: 1:4 (1 cement: 4 fine sand)
C126: 9" (from brickwork qty.) | D126: sqm | E126: 2 | F126: =24+24+39.551+39.551 -> 127.10 | H126: 2.1 | I126: =E126*F126*H126 -> 533.83
C128: Qty=From Plaster Total Qty.
B129: Paint | C129: Finishing walls with Acrylic Smooth exterior paint of required shade :
C130: New work (Two or more coat applied @ 1.67 ltr/10 sqm over and including priming coat of exterior primer applied @ 2.20 kg/10 sqm) | D130: sqm | I130: =I126 -> 533.83
C131: Qty=From Plaster Total Qty.
A134: G) | B134: Sructural Steel | C134: Structural steel work riveted, bolted or welded in built up sections, trusses and framed work, including cutting, hoisting, fixing in position and applying a priming coat of approved steel primer all complete. | H134: UNIT WEIGHT
B135: MS COLUMN | C135: SIZE :- 800 X 600
C136: 2ISMC- 300@36.3 KG/M | D136: KG | E136: =2*16 -> 32 | F136: 5.5 | H136: 36.3 | I136: =E136*F136 -> 176.00
C137: BASE PLATE 300 x 450 x 20 TH. | D137: KG | E137: 16 | F137: 1 | H137: 75.5 | I137: =E137*F137 -> 16.00
C138: STIFFNER PLATE 8 MM TH | D138: KG | E138: 16 | F138: =0.119*0.335*8 -> 0.32 | H138: 62.82 | I138: 5.10
C139: STIFFNER PLATE 10 MM TH | D139: KG | E139: 16 | F139: =(0.119+0.119+0.154+0.154+0.154)*0.335*2 -> 0.47 | H139: 78.5 | I139: 7.50
C140: FOUNDATION BOLT 20 DIA x 900 MM | D140: KG | E140: =8*16 -> 128 | F140: 0.9 | H140: 2.47 | I140: 115.20
B141: MS COLUMN | C141: SIZE :- 600 X 550
C142: 2ISMC- 200@22.1 KG/M | D142: KG | E142: =4*2 -> 8 | F142: 5.5 | H142: 22.1 | I142: =E142*F142 -> 44.00
C143: BASE PLATE 300 x 450 x 20 TH. | D143: KG | E143: 4 | F143: 1 | H143: 39.5 | I143: =E143*F143 -> 4.00
C144: STIFFNER PLATE 8 MM TH | D144: KG | E144: 4 | F144: =0.119*0.335*8 -> 0.32 | H144: 62.82 | I144: 1.28
C145: STIFFNER PLATE 10 MM TH | D145: KG | E145: 4 | F145: =(0.119+0.119+0.154+0.154+0.154)*0.335*2 -> 0.47 | H145: 78.5 | I145: 1.88
C146: FOUNDATION BOLT 20 DIA x 900 MM | D146: KG | E146: =10*4 -> 40 | F146: 0.9 | H146: 2.47 | I146: 36.00
C147: TRUSS
C148: TOP RAFTER R.H.S. 80 x 80 x 4.80 TH.-10.87 KG/M | D148: KG | E148: 7 | F148: 15.84 | H148: 10.87 | I148: =E148*F148 -> 110.88
C149: BOTTOM TIE R.H.S. 80 x 80 x 4.80 TH.-10.87 KG/M | D149: KG | E149: 7 | F149: 15.23 | H149: 10.87 | I149: =E149*F149 -> 106.61
C150: VERTICAL STRUTS S.H.S. 49 x 49 x 4.5 TH.-5.95 KG/M | D150: KG | E150: 147 | F150: 0.9 | H150: 5.95 | I150: 132.30
C151: INCLINDED STRUTS S.H.S. 49 x 49 x 4.5 TH.-5.95 KG/M | D151: KG | E151: 140 | F151: 1.1 | H151: 5.95 | I151: 154.00
C152: PURLINE S.H.S. R.H.S. 122 x 61 x 3.60 TH.-9.67 KG/M | D152: KG | E152: 14 | F152: 33 | H152: 9.67 | I152: 462.00
C153: TIE RUNNER S.H.S. R.H.S. 80 x 80 x 4.80 TH.-10.87 KG/M | D153: KG | E153: 6 | F153: 33 | H153: 10.87 | I153: 198.00
C154: TRUSS BASE PLATE 300 x 450 x 12 TH. | D154: KG | E154: 18 | F154: 0.135 | H154: 94.2 | I154: 2.43
C155: PURLINE CONNECTION PLATE 100 x 200 x 5 TH. | D155: KG | E155: 294 | F155: 0.03 | H155: 39.25 | I155: 8.82
C156: SHOE ANGLE ISA 75 x 75 x 6 TH. | D156: KG | E156: 36 | F156: 0.3 | H156: 6.8 | I156: 10.80
C157: GUSSET PLATE 300 x 220 x 10 MM TH. | D157: KG | E157: 18 | F157: 0.066 | H157: 78.5 | I157: 1.19
C158: CLEAT ISA 50 x 50 x 6 TH. | D158: KG | E158: 56 | F158: 0.15 | H158: 4.5 | I158: 8.40
C160: M.S. TIE BEAM
C161: R.H.S.145 x 82 x 4.8 TH. | D161: KG | E161: 1 | F161: 196 | H161: 15.9 | I161: =E161*F161 -> 196.00
A162: H) | B162: Sheet Roofing | C162: Providing corrugated G.S. sheet roofing including vertical / curved surface fixed with polymer coated J or L hooks, bolts and nuts 8 mm diameter with bitumen and G.I. limpet washers or with G.I. limpet washers filled with white lead, including a coat of approved steel primer and two coats of approved paint on overlapping of sheets complete (up to any pitch in horizontal/ vertical or curved surfaces), excluding the cost of purlins, rafters and trusses and including cutting to size and shape wherever required.
C163: 0.80 mm thick with zinc coating not less than 275 gm/m²
C164: Main shed | D164: Sqm | E164: 1 | F164: 39.55 | G164: 24 | I164: =F164*E164*G164 -> 949.22
C165: Eave gutter | D165: Sqm | E165: 2 | F165: 39.55 | G165: 0.9 | I165: =F165*E165*G165 -> 71.19
C166: ridge cap | D166: Sqm | E166: 1 | F166: =39.551 -> 39.55 | G166: 0.9 | I166: =F166*E166*G166 -> 35.60
C167: Canopy 2 | D167: Sqm | E167: 2 | F167: 5.00 | G167: 4 | I167: =F167*E167*G167 -> 40.00
A170: I) | B170: G.I. chain link fence | C170: Chain link fabric fencing mesh of size 25x25 mm made of G.I. wire of dia 3 mm | D170: Sqm | E170: 1 | F170: =24+24+39.551+39.551 -> 127.10 | H170: 3 | I170: =E170*F170*H170 -> 381.31
A172: Grand Total (Rs.)

Sheet 15M X 15M
A1: MRF Shed-UJJAIN
A2: Detailed Estimate 15M X 15M
A3: S.No | B3: Area detail | D3: Unit | E3: Num | F3: L | G3: B | H3: H | I3: Qty | J3: Unit Rate | K3: Amount
A4: (A) | B4: SUBSTRUCTURE
A5: A) | B5: Excavation | C5: Earth work in excavation by mechanical means (Hydraulic excavator)/ manual means over areas (exceeding 30 cm in depth, 1.5 m in width as well as 10 sqm on plan) including getting out and disposal of excavated earth lead upto 50 m and lift upto 1.5 m, as directed by Engineer-incharge.
C6: Ordinary rock
C7: 15M X 15MShed
C8: FC1 | D8: cum | E8: 6 | F8: =1.6+0.3 -> 1.90 | G8: =1.8+0.3 -> 2.10 | H8: 2.1 | I8: =(E8*F8*G8*H8) -> 50.27
C9: FC2 | D9: cum | E9: 6 | F9: =1.8+0.3 -> 2.10 | G9: =1.8+0.3 -> 2.10 | H9: 2.1 | I9: =(E9*F9*G9*H9) -> 55.57
G10: TOTAL | I10: =I8+I9 -> 105.84
B11: Backfilling | C11: Filling available excavated earth (excluding rock) in trenches, plinth, sides of foundations etc. in layers not exceeding 20cm in depth, consolidating each deposited layer by ramming and watering, lead up to 50 m and lift upto 1.5 m. | D11: cum | E11: 1 | I11: 184.35
A12: B) | B12: Shuttering | C12: Centering and shuttering including strutting, propping etc. and removal of form work for :
B13: PCC | C13: Foundations, footings, bases for columns
C14: 15M X 15MShed
C15: FC1 | D15: Sqm | E15: 6 | F15: =2*F8+2*G8 -> 8.00 | H15: 0.15 | I15: =(E15*F15*H15) -> 7.20
C16: FC2 | D16: Sqm | E16: 6 | F16: =2*F9+2*G9 -> 8.40 | H16: 0.15 | I16: =(E6*F6*H6) -> 0.00
B17: Footing | C17: Foundations, footings, bases for columns
C18: 15M X 15MShed
C19: FC1 | D19: Sqm | E19: 6 | F19: =(2*F8-0.3)+(2*G8-0.3) -> 7.40 | H19: 0.45 | I19: =(E19*F19*H19) -> 19.98
C20: FC2 | D20: Sqm | E20: 6 | F20: =(2*F9-0.3)+(2*G9-0.3) -> 7.80 | H20: 0.45 | I20: =(E20*F20*H20) -> 21.06
B21: Column | C21: Columns, piers, abutments, pillars, posts and struts
C22: 15M X 15MShed
C23: C1 | D23: Sqm | E23: 6 | F23: =0.4+0.4+0.5+0.5 -> 1.8 | H23: 2.5 | I23: =(E23*F23*H23) -> 27.00
C24: C2 | D24: Sqm | E24: 6 | F24: =0.4+0.4+0.4+0.4 -> 1.6 | H24: 2.5 | I24: 24.00
B25: Beam | C25: Columns, piers, abutments, pillars, posts and struts
C28: Ground Beam
C29: GB1 | D29: Sqm | E29: 2 | F29: =15+15+15+15 -> 60 | H29: 0.6 | I29: =E29*F29*H29 -> 72.00
C30: TOP BEAM
C31: B1 | D31: Sqm | E31: 2 | F31: 60 | H31: =H20 -> 0.45 | I31: 54.00
A34: C) | B34: Concrete | C34: Providing and laying in position cement concrete of specified grade excluding the cost of centering and shuttering - All work up to plinth level :
B35: PCC | C35: 1:3:6 (1 cement : 3 coarse sand (zone-III) : 6 graded stone aggregate 20 mm nominal size)
C36: 15M X 15MShed
C37: FC1 | D37: cum | E37: 6 | F37: =F8 -> 1.90 | G37: =G8 -> 2.10 | H37: 0.15 | I37: =(E37*F37*G37*H37) -> 3.59
C38: FC2 | D38: cum | E38: 6 | F38: =F9 -> 2.10 | G38: =G9 -> 2.10 | H38: 0.15 | I38: =(E38*F38*G38*H38) -> 3.97
B40: Footing | C40: 1:1½:3 (1 cement : 1½ coarse sand (zone-III) : 3 graded stone aggregate 20 mm nominal size).
C41: 15M X 15MShed
C42: FC1 | D42: cum | E42: 6 | F42: =F37-0.3 -> 1.60 | G42: =G37-0.3 -> 1.80 | H42: =H19 -> 0.45 | I42: =(E42*F42*G42*H42) -> 7.78
C43: FC2 | D43: cum | E43: 6 | F43: =F38-0.3 -> 1.80 | G43: =G38-0.3 -> 1.80 | H43: 0.4 | I43: 7.78
B44: Column | C44: 1:1½:3 (1 cement : 1½ coarse sand (zone-III) : 3 graded stone aggregate 20 mm nominal size).
C45: 15M X 15MShed
C46: C1 | D46: cum | E46: 6 | F46: 0.4 | G46: 0.5 | H46: =2.5+1.2 -> 3.7 | I46: =(E46*F46*G46*H46) -> 4.44
C47: C2 | D47: cum | E47: 6 | F47: 0.4 | G47: 0.4 | H47: =2.5+1.2 -> 3.7 | I47: 3.55
B48: GROUND BEAM | C48: 1:1½:3 (1 cement : 1½ coarse sand (zone-III) : 3 graded stone aggregate 20 mm nominal size).
C50: GB1 | D50: cum | E50: 1 | F50: =60 -> 60 | G50: 0.2 | H50: =H29 -> 0.6 | I50: =F50*G50*H50*E50 -> 7.20
B52: TOP BEAM 2.5M LVL | C52: 1:1½:3 (1 cement : 1½ coarse sand (zone-III) : 3 graded stone aggregate 20 mm nominal size).
C54: B1 | D54: cum | E54: 1 | F54: =24+39.551+6.75+32.301 -> 102.602 | G54: 0.2 | H54: 0.6 | I54: =F54*G54*H54*E54 -> 12.31
B56: TMT Bar | C56: Steel reinforcement for R.C.C. work including straightening, cutting, bending, placing in position and binding all complete upto plinth level
C57: Thermo-Mechanically Treated bars of grade Fe-500D or more.
C59: 15M X 15MShed
B60: FOOTING | C60: FC1
C61: (BOTTOM)
C62: ALONG B-10# | D62: KG | E62: 6 | F62: 1.60 | G62: =F62/0.15 -> 11 | H62: 0.62 | I62: =E62*F62*G62*H62 -> 63.49
C63: ALONG L-10# | D63: KG | E63: 6 | F63: 1.80 | G63: =F63/0.15 -> 12 | H63: 0.62 | I63: =E63*F63*G63*H63 -> 80.35
C64: (TOP)
C65: ALONG B | D65: KG | E65: 6 | F65: 1.60 | G65: =F65/0.25 -> 6 | H65: 0.62 | I65: =E65*F65*G65*H65 -> 38.09
C66: ALONG L | D66: KG | E66: 6 | F66: 1.80 | G66: =F66/0.25 -> 7 | H66: 0.62 | I66: =E66*F66*G66*H66 -> 48.21
C68: FC2
C69: (BOTTOM)
C70: ALONG B-10# | D70: KG | E70: 6 | F70: 1.50 | G70: =F70/0.15 -> 10 | H70: 0.62 | I70: =E70*F70*G70*H70 -> 55.80
C71: ALONG L-10# | D71: KG | E71: 6 | F71: 1.50 | G71: =F71/0.15 -> 10 | H71: 0.62 | I71: =E71*F71*G71*H71 -> 55.80
C72: (TOP)
C73: ALONG B-10# | D73: KG | E73: 6 | F73: =F70 -> 1.50 | G73: =F73/0.25 -> 6 | H73: 0.62 | I73: =E73*F73*G73*H73 -> 33.48
C74: ALONG L-10# | D74: KG | E74: 6 | F74: =F71 -> 1.50 | G74: =F74/0.25 -> 6 | H74: 0.62 | I74: =E74*F74*G74*H74 -> 33.48
B76: COLUMN
C78: C1 20# | D78: KG | E78: 6 | F78: =0.55+1.8+2.5 -> 4.85 | G78: 4 | H78: =20*20/162 -> 2.469 | I78: =E78*F78*G78*H78 -> 287.41
C79: 16# | D79: KG | E79: 6 | F79: =0.55+1.8+2.5 -> 4.85 | G79: 8 | H79: 1.58 | I79: 367.82
C80: STRP (8#) | D80: KG | E80: 6 | F80: =0.4+0.4+0.5+0.5 -> 1.80 | G80: =4.85/0.15 -> 32 | H80: 0.39 | I80: 136.19
C81: STRP (8#) | D81: KG | E81: 6 | F81: =0.2+0.2+0.5+0.5 -> 1.40 | G81: =4.85/0.15 -> 32 | H81: 0.3 | I81: 81.48
C82: STRP (8#) | D82: KG | E82: 6 | F82: =F81 -> 1.40 | G82: 32 | H82: 0.39 | I82: 105.92
C83: C1 16# | D83: KG | E83: 6 | F83: =0.55+1.8+2.5 -> 4.85 | G83: 4 | H83: 1.580 | I83: =E83*F83*G83*H83 -> 183.91
C84: 12# | D84: KG | E84: 6 | F84: =0.55+1.8+2.5 -> 4.85 | G84: 8 | H84: =12*12/162 -> 0.89 | I84: 206.93
C85: STRP (8#) | D85: KG | E85: 6 | F85: =0.4+0.4+0.5+0.5 -> 1.80 | G85: =4.85/0.15 -> 32 | H85: 0.39 | I85: =E85*F85*G85*H85 -> 136.19
C86: STRP (8#) | D86: KG | E86: 6 | F86: =0.2+0.2+0.5+0.5 -> 1.40 | G86: =4.85/0.15 -> 32 | H86: 0.3 | I86: 81.48
C87: STRP (8#) | D87: KG | E87: 6 | F87: =F86 -> 1.40 | G87: 32 | H87: 0.39 | I87: 105.92
B89: GROUND BEAM | C89: GB
C90: TOP STRAIGHT 6 # | D90: KG | E90: 1 | F90: =15+15+15+15 -> 60 | G90: 2 | H90: 1.58 | I90: =E90*F90*G90*H90 -> 189.60
C91: TOP EXTRA 6# | D91: KG | E91: 1 | F91: =(F90/3)*2+0.4 -> 40.40 | G91: 2 | H91: 1.58 | I91: 127.66
C92: BOTTOM STRAIGHT 6# | D92: KG | E92: 1 | F92: 127.10 | G92: 2 | H92: 1.58 | I92: 401.64
C93: BOTTOM EXTRA 6# | D93: KG | E93: 1 | F93: =(F92/7)*2+0.4 -> 36.71 | G93: 2 | H93: 1.58 | I93: 116.02
C94: SFR 12# | D94: KG | E94: 1 | F94: =F90 -> 60.00 | G94: 2 | H94: 0.89 | I94: 106.80
C95: STRP 8# | D95: KG | E95: 1 | F95: 1.8 | G95: 850 | H95: 0.4 | I95: 612.00
B97: TOP BEAM | C97: B
C98: TOP STRAIGHT 6 # | D98: KG | E98: 1 | F98: =15+15+15+15 -> 60 | G98: 2 | H98: 1.58 | I98: =E98*F98*G98*H98 -> 189.60
C99: TOP EXTRA 6# | D99: KG | E99: 1 | F99: =(F98/3)*2+0.4 -> 40.40 | G99: 2 | H99: 1.58 | I99: 127.66
C100: BOTTOM STRAIGHT 6# | D100: KG | E100: 1 | F100: 127.10 | G100: 2 | H100: 1.58 | I100: 401.64
C101: BOTTOM EXTRA 6# | D101: KG | E101: 1 | F101: =(F100/7)*2+0.4 -> 36.71 | G101: 2 | H101: 1.58 | I101: 116.02
C102: SFR 12# | D102: KG | E102: 1 | F102: =F98 -> 60.00 | G102: 2 | H102: 0.89 | I102: 106.80
C103: STRP 8# | D103: KG | E103: 1 | F103: =0.3+0.3+0.6+0.6 -> 1.8 | G103: 850 | H103: 0.4 | I103: 612.00
D104: KG | F104: Total STEEL | I104: =SUM(I62:I103) -> 5209.42
A106: (B) | B106: SUPERSTRUCTURE
A107: A) | B107: Plinth fill | C107: Plinth fill with Stone Dust | D107: cum | E107: 1 | F107: 15.00 | G107: 15.00 | H107: 0.45 | I107: =E107*F107*G107*H107 -> 101.25
G108: Total Qty= | I108: =I107 -> 101.25
A110: B) | B110: Flooring | C110: Cement concrete flooring 1:2:4 (1 cement : 2 coarse sand : 4 graded stone aggregate) finished with a floating coat of neat cement, including cement slurry, but excluding the cost of nosing of steps etc. complete.
D111: cum | E111: 1 | F111: 15.00 | G111: 15.00 | H111: 0.1 | I111: =E111*F111*G111*H111 -> 22.50
G112: Total Qty= | I112: =SUM(I111:I111) -> 22.50
A114: C) | B114: Brickwork | C114: Brick work with common burnt clay machine moulded perforated bricks of class designation 12.5 conforming to IS: 2222 in superstructure above plinth level up to floor five level in cement mortar 1:6 (1 cement : 6 coarse sand) :
C115: With Modular bricks
C117: 9" | D117: cum | E117: 1 | F117: 38.00 | G117: 0.23 | H117: 2.5 | I117: =E117*F117*G117*H117 -> 21.85
C118: Dedcut Shutter | D118: Nos. | E118: 1 | F118: 5.00 | G118: 0.23 | H118: 2.5 | I118: =E118*F118*G118*H118 -> 2.88
I119: =I117-I118 -> 18.98
A122: D) | B122: Plaster | C122: 12 mm cement plaster of mix
C123: 1:4 (1 cement: 4 fine sand)
C125: 9" (from brickwork qty.) | D125: sqm | E125: 2 | F125: =24+24+39.551+39.551 -> 127.10 | H125: 2.1 | I125: =E125*F125*H125 -> 533.83
C127: Qty=From Plaster Total Qty.
B128: Paint | C128: Finishing walls with Acrylic Smooth exterior paint of required shade :
C129: New work (Two or more coat applied @ 1.67 ltr/10 sqm over and including priming coat of exterior primer applied @ 2.20 kg/10 sqm) | D129: sqm | I129: =I125 -> 533.83
C130: Qty=From Plaster Total Qty.
A133: G) | B133: Sructural Steel | C133: Structural steel work riveted, bolted or welded in built up sections, trusses and framed work, including cutting, hoisting, fixing in position and applying a priming coat of approved steel primer all complete. | H133: UNIT WEIGHT
B134: MS COLUMN | C134: SIZE :- 800 X 600
C135: 2ISMC- 300@36.3 KG/M | D135: KG | E135: =2*6 -> 12 | F135: 5.5 | H135: 36.3 | I135: =E135*F135 -> 66.00
C136: BASE PLATE 300 x 450 x 20 TH. | D136: KG | E136: 6 | F136: 1 | H136: 75.5 | I136: =E136*F136 -> 6.00
C137: STIFFNER PLATE 8 MM TH | D137: KG | E137: 6 | F137: =0.119*0.335*8 -> 0.32 | H137: 62.82 | I137: 1.91
C138: STIFFNER PLATE 10 MM TH | D138: KG | E138: 6 | F138: =(0.119+0.119+0.154+0.154+0.154)*0.335*2 -> 0.47 | H138: 78.5 | I138: 2.81
C139: FOUNDATION BOLT 20 DIA x 900 MM | D139: KG | E139: =8*6 -> 48 | F139: 0.9 | H139: 2.47 | I139: 43.20
B140: MS COLUMN | C140: SIZE :- 600 X 550
C141: 2ISMC- 200@22.1 KG/M | D141: KG | E141: =4*2 -> 8 | F141: 5.5 | H141: 22.1 | I141: =E141*F141 -> 44.00
C142: BASE PLATE 300 x 450 x 20 TH. | D142: KG | E142: 4 | F142: 1 | H142: 39.5 | I142: =E142*F142 -> 4.00
C143: STIFFNER PLATE 8 MM TH | D143: KG | E143: 4 | F143: =0.119*0.335*8 -> 0.32 | H143: 62.82 | I143: 1.28
C144: STIFFNER PLATE 10 MM TH | D144: KG | E144: 4 | F144: =(0.119+0.119+0.154+0.154+0.154)*0.335*2 -> 0.47 | H144: 78.5 | I144: 1.88
C145: FOUNDATION BOLT 20 DIA x 900 MM | D145: KG | E145: =10*4 -> 40 | F145: 0.9 | H145: 2.47 | I145: 36.00
C146: TRUSS
C147: TOP RAFTER R.H.S. 80 x 80 x 4.80 TH.-10.87 KG/M | D147: KG | E147: 7 | F147: 15.84 | H147: 10.87 | I147: =E147*F147 -> 110.88
C148: BOTTOM TIE R.H.S. 80 x 80 x 4.80 TH.-10.87 KG/M | D148: KG | E148: 7 | F148: 15.23 | H148: 10.87 | I148: =E148*F148 -> 106.61
C149: VERTICAL STRUTS S.H.S. 49 x 49 x 4.5 TH.-5.95 KG/M | D149: KG | E149: 147 | F149: 0.9 | H149: 5.95 | I149: 132.30
C150: INCLINDED STRUTS S.H.S. 49 x 49 x 4.5 TH.-5.95 KG/M | D150: KG | E150: 140 | F150: 1.1 | H150: 5.95 | I150: 154.00
C151: PURLINE S.H.S. R.H.S. 122 x 61 x 3.60 TH.-9.67 KG/M | D151: KG | E151: 14 | F151: 33 | H151: 9.67 | I151: 462.00
C152: TIE RUNNER S.H.S. R.H.S. 80 x 80 x 4.80 TH.-10.87 KG/M | D152: KG | E152: 6 | F152: 33 | H152: 10.87 | I152: 198.00
C153: TRUSS BASE PLATE 300 x 450 x 12 TH. | D153: KG | E153: 18 | F153: 0.135 | H153: 94.2 | I153: 2.43
C154: PURLINE CONNECTION PLATE 100 x 200 x 5 TH. | D154: KG | E154: 294 | F154: 0.03 | H154: 39.25 | I154: 8.82
C155: SHOE ANGLE ISA 75 x 75 x 6 TH. | D155: KG | E155: 36 | F155: 0.3 | H155: 6.8 | I155: 10.80
C156: GUSSET PLATE 300 x 220 x 10 MM TH. | D156: KG | E156: 18 | F156: 0.066 | H156: 78.5 | I156: 1.19
C157: CLEAT ISA 50 x 50 x 6 TH. | D157: KG | E157: 56 | F157: 0.15 | H157: 4.5 | I157: 8.40
C159: M.S. TIE BEAM
C160: R.H.S.145 x 82 x 4.8 TH. | D160: KG | E160: 1 | F160: 196 | H160: 15.9 | I160: =E61*F61 -> 0.00
A161: H) | B161: Sheet Roofing | C161: Providing corrugated G.S. sheet roofing including vertical / curved surface fixed with polymer coated J or L hooks, bolts and nuts 8 mm diameter with bitumen and G.I. limpet washers or with G.I. limpet washers filled with white lead, including a coat of approved steel primer and two coats of approved paint on overlapping of sheets complete (up to any pitch in horizontal/ vertical or curved surfaces), excluding the cost of purlins, rafters and trusses and including cutting to size and shape wherever required.
C162: 0.80 mm thick with zinc coating not less than 275 gm/m²
C163: Main shed | D163: Sqm | E163: 1 | F163: 15.00 | G163: 15 | I163: =F64*E64*G64 -> 0.00
C164: Canopy 2 | D164: Sqm | E164: 1 | F164: 5.00 | G164: 4 | I164: =F67*E67*G67 -> 0.00
A167: I) | B167: G.I. chain link fence | C167: Chain link fabric fencing mesh of size 25x25 mm made of G.I. wire of dia 3 mm | D167: Sqm | E167: 1 | F167: =15+15+15+15 -> 60.00 | H167: 3 | I167: =E167*F167*H167 -> 180.00
A169: Grand Total (Rs.)

Sheet TOILET BLOCK
A1: MRF TOILET BLOCK -UJJAIN
A2: Toilet block Detailed Estimate
A3: S.No | B3: Area detail | D3: Unit | E3: Num | F3: L | G3: B | H3: H | I3: Qty | J3: Unit Rate | K3: Amount
A4: (A) | B4: SUBSTRUCTURE
A5: A) | B5: Excavation | C5: Earth work in excavation by mechanical means (Hydraulic excavator)/ manual means over areas (exceeding 30 cm in depth, 1.5 m in width as well as 10 sqm on plan) including getting out and disposal of excavated earth lead upto 50 m and lift upto 1.5 m, as directed by Engineer-incharge.
C6: Ordinary rock
C7: Main Plant TOILET BLOCK
C8: FC1 | D8: cum | E8: 7 | F8: =1.3+0.3 -> 1.60 | G8: =1+0.3 -> 1.30 | H8: 2.1 | I8: =(E8*F8*G8*H8) -> 30.58
C9: FC2 | D9: cum | E9: 1 | F9: =1.4+0.3 -> 1.70 | G9: =1.2+0.3 -> 1.50 | H9: 2.1 | I9: =(E9*F9*G9*H9) -> 5.36
G10: TOTAL | I10: =I8+I9 -> 35.93
B11: Backfilling | C11: Filling available excavated earth (excluding rock) in trenches, plinth, sides of foundations etc. in layers not exceeding 20cm in depth, consolidating each deposited layer by ramming and watering, lead up to 50 m and lift upto 1.5 m. | D11: cum | E11: 1 | I11: =I10*0.45 -> 16.17
A12: B) | B12: Shuttering | C12: Centering and shuttering including strutting, propping etc. and removal of form work for :
B13: PCC | C13: Foundations, footings, bases for columns
C14: Main Plant TOILET BLOCK
C15: FC1 | D15: Sqm | E15: 7 | F15: =2*F8+2*G8 -> 5.80 | H15: 0.15 | I15: =(E15*F15*H15) -> 6.09
C16: FC2 | D16: Sqm | E16: 1 | F16: =2*F9+2*G9 -> 6.40 | H16: 0.15 | I16: =(E16*F16*H16) -> 0.96
B17: Footing | C17: Foundations, footings, bases for columns
C18: Main Plant TOILET BLOCK
C19: FC1 | D19: Sqm | E19: 7 | F19: =(2*F8-0.3)+(2*G8-0.3) -> 5.20 | H19: 0.4 | I19: =(E19*F19*H19) -> 14.56
C20: FC2 | D20: Sqm | E20: 1 | F20: =(2*F9-0.3)+(2*G9-0.3) -> 5.80 | H20: 0.45 | I20: =(E20*F20*H20) -> 2.61
B21: Column | C21: Columns, piers, abutments, pillars, posts and struts
C22: Main Plant TOILET BLOCK
C23: C1 | D23: Sqm | E23: 7 | F23: =0.3+0.3+0.45+0.45 -> 1.5 | H23: 3.2 | I23: =(E23*F23*H23) -> 33.60
C24: C2 | D24: Sqm | E24: 1 | F24: =F23 -> 1.5 | H24: 3.2 | I24: 4.80
B25: Beam | C25: Columns, piers, abutments, pillars, posts and struts
C28: Ground Beam
C29: GB1 | D29: Sqm | E29: 2 | F29: =8.03+8.03+5.575+3.815+3.815+3.01+3.01+3.815 -> 39.1 | H29: 0.6 | I29: =E29*F29*H29 -> 46.92
C30: SLAB BEAM
C31: B1 | D31: Sqm | E31: 2 | F31: =8.03+8.03+5.575+3.815+3.815+3.01+3.01+3.815+3.01 -> 42.11 | H31: =H20 -> 0.45 | I31: 37.90
B33: SLAB | C33: S1 | D33: Sqm | E33: 1 | F33: =F56 -> 49.77 | I33: =E33*F33 -> 49.77
A34: C) | B34: Concrete | C34: Providing and laying in position cement concrete of specified grade excluding the cost of centering and shuttering - All work up to plinth level :
B35: PCC | C35: 1:3:6 (1 cement : 3 coarse sand (zone-III) : 6 graded stone aggregate 20 mm nominal size)
C36: Main Plant TOILET BLOCK
C37: FC1 | D37: cum | E37: 7 | F37: =F8 -> 1.60 | G37: =G8 -> 1.30 | H37: 0.15 | I37: =(E37*F37*G37*H37) -> 2.18
C38: FC2 | D38: cum | E38: 1 | F38: =F9 -> 1.70 | G38: =G9 -> 1.50 | H38: 0.15 | I38: =(E38*F38*G38*H38) -> 0.38
B40: Footing | C40: 1:1½:3 (1 cement : 1½ coarse sand (zone-III) : 3 graded stone aggregate 20 mm nominal size).
C41: Main Plant TOILET BLOCK
C42: FC1 | D42: cum | E42: 7 | F42: =F37-0.3 -> 1.30 | G42: =G37-0.3 -> 1.00 | H42: =H19 -> 0.4 | I42: =(E42*F42*G42*H42) -> 3.64
C43: FC2 | D43: cum | E43: 1 | F43: =F38-0.3 -> 1.40 | G43: =G38-0.3 -> 1.20 | H43: =H20 -> 0.45 | I43: 0.76
B44: Column | C44: 1:1½:3 (1 cement : 1½ coarse sand (zone-III) : 3 graded stone aggregate 20 mm nominal size).
C45: Main Plant TOILET BLOCK
C46: C1 | D46: cum | E46: 7 | F46: 0.3 | G46: 0.45 | H46: =2.5+1.2 -> 3.7 | I46: =(E46*F46*G46*H46) -> 3.50
C47: C2 | D47: cum | E47: 1 | F47: 0.3 | G47: 0.45 | H47: =2.5+1.2 -> 3.7 | I47: 0.50
B48: GROUND BEAM | C48: 1:1½:3 (1 cement : 1½ coarse sand (zone-III) : 3 graded stone aggregate 20 mm nominal size).
C50: GB1 | D50: cum | E50: 1 | F50: =F29 -> 39.1 | G50: 0.2 | H50: 0.45 | I50: =F50*G50*H50*E50 -> 3.52
B52: TOP BEAM 3.2M LVL | C52: 1:1½:3 (1 cement : 1½ coarse sand (zone-III) : 3 graded stone aggregate 20 mm nominal size).
C54: B1 | D54: cum | E54: 1 | F54: =F31 -> 42.11 | G54: 0.2 | H54: 0.45 | I54: =F54*G54*H54*E54 -> 3.79
B56: SLAB | D56: cum | E56: 1 | F56: 49.77 | H56: 0.13 | I56: =E56*F56*H56 -> 6.47
B57: TMT Bar | C57: Steel reinforcement for R.C.C. work including straightening, cutting, bending, placing in position and binding all complete upto plinth level
C58: Thermo-Mechanically Treated bars of grade Fe-500D or more.
C60: Main Plant TOILET BLOCK
B61: FOOTING | C61: FC1
C62: (BOTTOM)
C63: ALONG B-10# | D63: KG | E63: 7 | F63: =F42 -> 1.30 | G63: =F63/0.15 -> 9 | H63: 0.62 | I63: =E63*F63*G63*H63 -> 48.90
C64: ALONG L-10# | D64: KG | E64: 7 | F64: =G42 -> 1.00 | G64: =F64/0.15 -> 7 | H64: 0.62 | I64: =E64*F64*G64*H64 -> 28.93
C65: (TOP)
C66: ALONG B | D66: KG | E66: 7 | F66: =F63 -> 1.30 | G66: =F66/0.25 -> 5 | H66: 0.62 | I66: =E66*F66*G66*H66 -> 29.34
C67: ALONG L | D67: KG | E67: 7 | F67: =F64 -> 1.00 | G67: =F67/0.25 -> 4 | H67: 0.62 | I67: =E67*F67*G67*H67 -> 17.36
C69: FC2
C70: (BOTTOM)
C71: ALONG B-10# | D71: KG | E71: 1 | F71: =F43 -> 1.40 | G71: =F71/0.15 -> 9 | H71: 0.62 | I71: =E71*F71*G71*H71 -> 8.10
C72: ALONG L-10# | D72: KG | E72: 1 | F72: =G43 -> 1.20 | G72: =F72/0.15 -> 8 | H72: 0.62 | I72: =E72*F72*G72*H72 -> 5.95
C73: (TOP)
C74: ALONG B-10# | D74: KG | E74: 1 | F74: =F71 -> 1.40 | G74: =F74/0.25 -> 6 | H74: 0.62 | I74: =E74*F74*G74*H74 -> 4.86
C75: ALONG L-10# | D75: KG | E75: 1 | F75: =F72 -> 1.20 | G75: =F75/0.25 -> 5 | H75: 0.62 | I75: =E75*F75*G75*H75 -> 3.57
B77: COLUMN
C79: C1 | D79: KG | E79: 7 | F79: =0.3+3.2+1.8 -> 5.30 | G79: 10 | H79: 0.88 | I79: =E79*F79*G79*H79 -> 326.48
C80: STRP (8#) | D80: KG | E80: 7 | F80: =0.22+0.22+0.37+0.37+0.02 -> 1.20 | G80: =F79/0.15 -> 35 | H80: 0.39 | I80: 115.75
C81: STRP (8#) | D81: KG | E81: 7 | F81: =0.14+0.14+0.22+0.22+0.02 -> 0.74 | G81: =F79/0.15 -> 35 | H81: 0.3 | I81: 54.91
C82: STRP (8#) | D82: KG | E82: 7 | F82: =0.45-0.08 -> 0.37 | G82: =G81 -> 35 | H82: 0.39 | I82: 35.69
C83: C2 12# | D83: KG | E83: 1 | F83: 5.30 | G83: 4 | H83: 1.58 | I83: 33.50
C84: 16# | D84: KG | E84: 1 | F84: =0.3+3.2+1.8 -> 5.30 | G84: 6 | H84: 0.88 | I84: =E84*F84*G84*H84 -> 27.98
C85: STRP (8#) | D85: KG | E85: 1 | F85: =0.22+0.22+0.37+0.37+0.02 -> 1.20 | G85: =F83/0.15 -> 35 | H85: 0.39 | I85: 16.54
C86: STRP (8#) | D86: KG | E86: 1 | F86: =0.14+0.14+0.22+0.22+0.02 -> 0.74 | G86: =F84/0.15 -> 35 | H86: 0.3 | I86: 7.84
C87: STRP (8#) | D87: KG | E87: 1 | F87: =0.45-0.08 -> 0.37 | G87: =G86 -> 35 | H87: 0.39 | I87: 5.10
B89: GROUND BEAM | C89: GB
C90: TOP STRAIGHT 16 # | D90: KG | E90: 1 | F90: =F50 -> 39.1 | G90: 2 | H90: 1.58 | I90: =E90*F90*G90*H90 -> 123.56
C91: TOP EXTRA 12# | D91: KG | E91: 1 | F91: =(F90/3)*2+0.4 -> 26.47 | G91: 2 | H91: 0.88 | I91: 46.58
C92: BOTTOM STRAIGHT 12# | D92: KG | E92: 1 | F92: 127.10 | G92: 2 | H92: 0.88 | I92: 223.70
C93: BOTTOM EXTRA 12# | D93: KG | E93: 1 | F93: =(F92/7)*2+0.4 -> 36.71 | G93: 2 | H93: 0.88 | I93: 64.62
C94: STRP 8# | D94: KG | E94: 1 | F94: =F101 -> 1.08 | G94: 261 | H94: 0.39 | I94: 109.93
B96: TOP BEAM | C96: B
C97: TOP STRAIGHT 16 # | D97: KG | E97: 1 | F97: =F54 -> 42.11 | G97: 2 | H97: 1.58 | I97: =E97*F97*G97*H97 -> 133.07
C98: TOP EXTRA 16# | D98: KG | E98: 1 | F98: =(F97/3)*2+0.4 -> 28.47 | G98: 2 | H98: 1.58 | I98: 89.98
C99: BOTTOM STRAIGHT 16# | D99: KG | E99: 1 | F99: =F97 -> 42.11 | G99: 2 | H99: 1.58 | I99: 133.07
C100: BOTTOM EXTRA 16# | D100: KG | E100: 1 | F100: =(F99/7)*2+0.4 -> 12.43 | G100: 2 | H100: 1.58 | I100: 39.28
C101: STRP 8# | D101: KG | E101: 1 | F101: =0.14+0.14+0.39+0.39+0.02 -> 1.08 | G101: 281 | H101: 0.4 | I101: 121.39
B102: SLAB | C102: S1 | D102: KG | E102: 1 | F102: 1.5 | G102: =49.77 -> 49.77 | H102: 0.4 | I102: 29.86
D104: KG | F104: Total STEEL | I104: =SUM(I63:I101) -> 1855.98
A106: (B) | B106: SUPERSTRUCTURE
A107: A) | B107: Plinth fill | C107: Plinth fill with Stone Dust | D107: cum | E107: 1 | F107: 49.77 | H107: 0.45 | I107: =F107*H107 -> 22.40
G108: Total Qty= | I108: =I107 -> 22.40
A110: B) | B110: Flooring | C110: Cement concrete flooring 1:2:4 (1 cement : 2 coarse sand : 4 graded stone aggregate) finiTOILET BLOCK with a floating coat of neat cement, including cement slurry, but excluding the cost of nosing of steps etc. complete.
D111: cum | E111: 1 | F111: =F107 -> 49.77 | H111: 0.1 | I111: =E111*F111*G111*H111 -> 0.00
G112: Total Qty= | I112: =SUM(I111:I111) -> 0.00
A114: C) | B114: Brickwork | C114: Brick work with common burnt clay machine moulded perforated bricks of class designation 12.5 conforming to IS: 2222 in superstructure above plinth level up to floor five level in cement mortar 1:6 (1 cement : 6 coarse sand) :
C115: With Modular bricks
C117: 9" | D117: cum | E117: 1 | F117: =F90 -> 39.10 | G117: 0.23 | H117: 3.2 | I117: =E117*F117*G117*H117 -> 28.78
C118: Dedcut DOOR & WINDOWS | D118: Nos. | E118: 3 | F118: 1.00 | G118: 0.23 | H118: 2.1 | I118: =E118*F118*G118*H118 -> 1.45
C119: W | D119: Nos. | E119: 2 | F119: 1.20 | G119: 0.23 | H119: 1.6 | I119: =E119*F119*G119*H119 -> 0.88
C120: V | D120: Nos. | E120: 6 | F120: 0.60 | G120: 0.23 | H120: 0.9 | I120: 0.75
I122: =I117-(I118+I119+I120) -> 25.70
A123: D) | B123: Plaster | C123: 12 mm cement plaster of mix
C124: 1:4 (1 cement: 4 fine sand)
C126: 9" (from brickwork qty.) | D126: sqm | E126: 2 | F126: =F117 -> 39.10 | H126: 3.2 | I126: =E126*F126*H126 -> 250.24
C128: Qty=From Plaster Total Qty.
B129: Paint | C129: Finishing walls with Acrylic Smooth exterior paint of required shade :
C130: New work (Two or more coat applied @ 1.67 ltr/10 sqm over and including priming coat of exterior primer applied @ 2.20 kg/10 sqm) | D130: sqm | I130: =I126 -> 250.24
C131: Qty=From Plaster Total Qty.
A133: Grand Total (Rs.)

Sheet ELECTRICAL
A1: BILL OF QUNATITIES FOR INTERNAL ELECTRICAL WORKS
A3: S.No. | B3: ITEM DESCRIPTION | C3: Unit | D3: Qty. | E3: Unit Rate | F3: Amount
A4: A) | B4: POINT WIRING:-
A5: 1 | B5: Supplying all materials, storing, handling, fixing, laying, wiring and testing for the following Light Point with 2 x 1.5 + 1 x 1.5 sq.mm FR insulated multistranded copper conductor 1100 volts grade stranded flexible wires in concealed/surface mounted PVC Conduit including cost of cutting & filling chases/ saddle, clamps, inspection/solid bends, sockets etc. and providing and fixing of 6 amps single pole modular flush mounted switch & switch plate in 1.2mm thick & 65mm deep GI box. The cost of circuit wiring with 2 x 2.5 + 1 x 1.5 Sqmm FR insulated multistranded copper conductor 1100 Volts grade wires shall be included in the cost of point wiring. (Cost of fish wire also to be included in the item)
A6: 1.1 | B6: Controlled by one 6A Modular Switch:
A7: a) | B7: First Point | C7: Nos. | D7: 1
A8: b) | B8: Loop Point | C8: Nos. | D8: 1
A10: 1.2 | B10: Same as above item no. 1.1 but controlled by two (2) Nos. two way switch.
A11: a) | B11: First Point | C11: Nos. | D11: 1
A12: b) | B12: Loop Point | C12: Nos. | D12: 1
A14: 1.3 | B14: Same as above item no. 1.1 but directly controlled from MCB in DB (Cost of MCB not be included.)
A15: a) | B15: First Point | C15: Nos. | D15: 12
A16: b) | B16: Loop Point | C16: Nos. | D16: 13
A18: 2 | B18: Supplying all materials, storing, handling, fixing, laying, wiring and testing for 6A, 5-pin light plug with FR insulated multistranded copper conductor wire in concealed/surface mounted PVC Conduit including cost of cutting and filling chases as required with fixing of plate, modular type switch socket (6A) and earthing complete with all accessories as required. The first point wiring shall be done with 2 x 2.5 + 1 x 1.5 Sqmm wires and looping shall be done with 2 x 1.5 + 1 x 1.5 Sqmm wires. Only one point to be looped (light plug). (Cost of fish wire also to be included in the item)
A19: a) | B19: First point | C19: Nos. | D19: 2
A20: b) | B20: loop point | C20: Nos. | D20: 2
A22: 4 | B22: Supplying all materials, storing, handling, fixing, laying, wiring and testing for 2 x 6A, 5-pin light plug with FR insulated multistranded copper conductor wire in concealed/surface mounted PVC Conduit including cost of cutting and filling chases as required with fixing of plate, set of 2 Nos. modular type socket (6A) controlled by 1 No. 6A switch and earthing complete with all accessories as required. The first point wiring shall be done with 2 x 2.5 + 1 x 1.5 Sqmm wires and looping shall be done with 2 x 1.5 + 1 x 1.5 Sqmm wires. Only one point and to be looped (UPS Fed). (Cost of fish wire also to be included in the item).
A23: a) | B23: first point | C23: Nos. | D23: 0
A24: b) | B24: loop point | C24: Nos. | D24: 0
A26: 5 | B26: Supplying all materials, storing, handling, fixing laying, wiring and testing for exhaust fan point wiring with 2 x 1.5 + 1 x 1.5 sq.mm FR insulated copper conductor wire in concealed/surface mounted PVC Conduit including cost of cutting and filling chases as required with fixing of 6 amp modular switch and suitable plate on the existing switchboard near door and 6A, 3 pin plug to be provided near exhaust fan (cost of fish wire to be included in the item). | C26: Nos.
A28: 6 | B28: Supplying all materials, storing, handling, fixing laying, wiring and testing for ceiling fan point wiring with 2 x 1.5 + 1 x 1.5 sq.mm FR insulated copper conductor wire in concealed/surface mounted PVC Conduit including cost of cutting fixing of 6 amp single pole modular flush mounted switch & switch plate.(cost of fire wire wire to be included in the item). | C28: Nos.
A30: 7 | B30: Providing and fixing circular/ Hexagonal MS box for ceiling fan clamp, of internal dia 140 mm, 73 mm height, top lid of 1.5 mm thick MS sheet with its top surface hacked for proper bonding, top lid shall be screwed into the GI box by means of 3.3 mm dia round headed screws, one lock at the corners, clamp shall be made of 12 mm dia M.S. bar bent to shape as per standard drawing. | C30: Nos.
A32: 8 | B32: Supplying and fixing stepped type electronic fan regulator on the existing modular plate switch box including connections but excluding modular plate etc. as required. | C32: Nos.
A34: 9 | B34: Supplying all materials, storing, handling, fixing, laying, wiring and testing for 16 Amp power outlet with FR insulated copper conductor wires in concealed/surface mounted PVC Conduit including cost of cutting and filling chases as required with fixing of 6 pin 16 Amps shuttered modular switch socket, switch plate with internal wiring , earthing of 3rd pin. The wiring shall be done with 2 x 4.0 + 1 x 2.5 Sqmm copper wire and looping shall be done with 2 x 2.5 + 1 x 1.5 Sqmm. (Power Socket). (cost of fire wire wire to be included in the item).
A35: a) | B35: First Point | C35: Nos. | D35: 6
A36: b) | B36: Loop Point | C36: Nos. | D36: 4
A38: 10 | B38: Supplying all materials, storing, handling, fixing, laying, wiring and testing for 20 Amp power outlet for AC with FR insulated copper conductor wires in concealed/surface mounted MS Conduit including cost of cutting and filling chases as required with fixing of 6 pin 16 Amps shuttered modular switch socket, switch plate with internal wiring , earthing of 3rd pin. The wiring shall be done with 2 x 4.0 + 1 x 2.5 Sqmm copper wire and looping shall be done with 2 x 2.5 + 1 x 1.5 Sqmm. (AC Socket). (cost of fire wire wire to be included in the item). | C38: Nos. | D38: 0
A40: 11 | B40: Supplying, installation, testing , commissioning of 20 amps, 240 volts, SPN metal clad socket with 2 pole and earth, metal enclosed plug top along with 20 amps "C" curve, SP, MCB in sheet steel enclosure with chained metal cover for the socket out let and complete with connections, testing and commissioning etc. as required (2 x 4.0 + 1 x 2.5 sq.mm wiring have been taken separately). (In Electrical Room, Basement, Stilt and Terrace.) | C40: Nos. | D40: 0
A42: 12 | B42: Supplying and fixing following modular switch/ socket on the existing modular plate & switch box including connections but excluding modular plate etc. as required.
B43: Bell push | C43: Nos.
A45: 13 | B45: Supplying and fixing modular blanking plate on the existing modular plate & switch box excluding modular plate as required. | C45: Nos. | D45: 6
A47: 14 | B47: Supplying and fixing 3 pin, 5 amp ceiling rose on the existing junction box/ wooden block including connection etc as required. | C47: Nos. | D47: 0
A49: 15 | B49: Supplying and fixing call bell/ buzzer suitable for single phase, 230 volts, complete as required. | C49: Nos.
A51: 16 | B51: Supply, Installation, testing and commissioning of Multisensor suitable for single phase, 230 volts, complete as required. | C51: Nos.
A53: 17 | B53: Supply, Installation, testing and commissioning of USB Charging socket for single phase, 230 volts, complete as required. | C53: Nos.
A55: 18 | B55: Providing and fixing of following sizes of PVC conduit on surface/recessed including cost of cutting and filling chases as required along with all accessories etc. complete as required (cost of fish wire to be included in the item).
A57: b) | B57: 32mm dia conduit | C57: RM | D57: 20
A58: c) | B58: 25mm dia conduit | C58: RM | D58: 20
B60: TOTAL CARRIED OVER TO SUMMARY
A62: Notes: | B62: 1. All copper wires shall be of FR insulated.
B63: 2. Sizes of conduit/conduit accessories will be as per the maximum nos. of wires to be drawn in the conduit as given in the technical specification/Relevant standard.
A64: B) | B64: SUB-MAINS CABLE FOR DBs:-
B65: Supplying, installation, testing, Termination and commissioning of XLPE armoured Aluminum cable for submain of DBs suitable size 1100 volts grade as per technical specifications and drawings enclosed with this document
A66: a) | B66: 2 X 4 sq. mm + 1 X 2.5 sq. mm earth wire | C66: RM
A67: b) | B67: 2 X 6 sq. mm + 1 X 4 sq. mm earth wire | C67: RM
A68: c) | B68: 4 X 10 sq. mm + 2 X 6 sq. mm earth wire | C68: RM | D68: 15
B69: TOTAL CARRIED OVER TO SUMMARY
A72: C) | B72: LIGHT FIXTURES AND FANS (INSTALATION ONLY):-
B73: Installation, testing, commissioning, receiving the lighting fixture and fan including assembling etc. of the following lighting fixtures and Fans including fixing arrangement and with all accessories as required with necessary GI pipe/steel pipe etc. as required for hanging of lighting fixtures and Fan.
A74: a) | B74: 18W wall mounted LED Batten light. (Make Philips, Model no. :-MASS LED TUBE 1200MM 18W 865 T8) or Equivalent to Wipro & Bajaj. | C74: Nos. | D74: 0
A75: b) | B75: 12W surface mounted circular LED light. (Make Wipro, Model no. :- D641265) or Equivalent to Philips, Bajaj. | C75: Nos.
A76: c) | B76: 8-10 W LED Mirror Light. | C76: Nos.
A77: d) | B77: Supply of 7W LED Wall Bracket Light. Make- Philips, Model- (E27 6500K A60 ND) or Equivalent to Trilux, GE | C77: Nos.
A78: e) | B78: Bulk head light. (Make Philips, Model no. :-WT202W LED6S NW PSU S2 PC) or Equivalent to Trilux, GE. | C78: Nos.
A79: f) | B79: 60 Degree 80W Wipro Alpha Floodlight, IP Rating: IP66, Model Name/Number: LF19-931-060-57-XX | C79: Nos. | D79: 25
A80: g) | B80: Exit sign Light | C80: Nos. | D80: 2
A81: h) | B81: Ceiling Fan of 1200mm sweep complete erected in position with all accessories.(Make- Havels) or Equivalent to Orient, Cropton Greave. | C81: Nos.
A82: i) | B82: Exhaust Fan Heavy duty 230V A.C 50 cycles 375 mm 1400 RPM complete erected in position with all accessories.(Make- Havels) | C82: Nos.
A84: Notes:
A85: 1) | B85: The type of fittings/make will be decided after interior designer selects the fittings. However, erection rate quoted shall hold good for a similar type of fittings and no extra charge will be paid on this account.
A87: 2) | B87: Above item are based on General requirement on the preliminary drawings. Quantity are approximate & may change based on revised layout.
B90: TOTAL CARRIED OVER TO SUMMARY
A92: D) | B92: LIGHT FIXTURES AND FANS (SUPPLY ONLY):-
B93: Supply the lighting fixture and fan including assembling etc. of the following lighting fixtures and Fans including fixing arrangement and with all accessories as required with necessary GI pipe/steel pipe etc. as required for hanging of lighting fixtures and Fan.
A94: a) | B94: 18W wall mounted LED Batten light. (Make Philips, Model no. :-MASS LED TUBE 1200MM 18W 865 T8) or Equivalent to Wipro & Bajaj. | C94: Nos. | D94: 0
A95: b) | B95: 12W surface mounted circular LED light. (Make Wipro, Model no. :- D641265) or Equivalent to Philips, Bajaj. | C95: Nos.
A96: c) | B96: 8-10 W LED Mirror Light. | C96: Nos.
A97: d) | B97: Supply of 7W LED Wall Bracket Light. Make- Philips, Model- (E27 6500K A60 ND) or Equivalent to Trilux, GE | C97: Nos.
A98: e) | B98: Bulk head light. (Make Philips, Model no. :-WT202W LED6S NW PSU S2 PC) or Equivalent to Trilux, GE. | C98: Nos.
A99: f) | B99: 60 Degree 80W Wipro Alpha Floodlight, IP Rating: IP66, Model Name/Number: LF19-931-060-57-XX | C99: Nos. | D99: 25
A100: g) | B100: Exit sign Light | C100: Nos. | D100: 2
A101: h) | B101: Ceiling Fan of 1200mm sweep complete erected in position with all accessories.(Make- Havels) or Equivalent to Orient, Cropton Greave. | C101: Nos.
A102: i) | B102: Exhaust Fan Heavy duty 230V A.C 50 cycles 375 mm 1400 RPM complete erected in position with all accessories.(Make- Havels) | C102: Nos.
A104: Notes:
A105: 1) | B105: The type of fittings/make will be decided after interior designer selects the fittings. However, erection rate quoted shall hold good for a similar type of fittings and no extra charge will be paid on this account.
A107: 2) | B107: Above item are based on General requirement on the preliminary drawings. Quantity are approximate & may change based on revised layout.
B109: TOTAL CARRIED OVER TO SUMMARY
A111: E) | B111: DISTRIBUTION BOARDS:-
A112: 1 | B112: Supply, installation, testing & commissioning of following MCB double door type prewired Distribution boards as per drawing & specification fabricated out of 16 SWG CRCA sheet steel in compartmentalized design as per specification and drawings these distribution boards shall be surface/ recessed in walls. The rate includes the painting, numbering earthing etc. as required. DB shall be suitable for incoming aluminum armoured cable.
A114: 1 | B114: 8 Way TPN DB (MACHINES AREA)
B115: Comprising of following:
B116: Incoming:
B117: One (1) No. 63A FP MCB (10kA)
B118: Three (3) Nos. 40A DP RCBO (100mA)
B119: Outgoing:
B120: Eighteen (18) Nos. 6-20A SP MCB (10kA)
B121: Neutral link:
B122: Separate for each outgoing
B123: Earthing Terminals:
B124: Earthing terminals suitable for outgoing as above. | C124: No. | D124: 1
A126: 2 | B126: 6 Way SPN DB
B127: Comprising of following:
B128: Incoming:
B129: 25A DP RCBO (100mA)
B130: Outgoing:
B131: Four (4) Nos. 6A-25A SP MCB (10kA)
B132: Neutral link:
B133: Separate for each outgoing
B134: Earthing Terminals:
B135: Earthing terminals suitable for outgoing as above. | C135: Nos. | D135: 0
B137: TOTAL CARRIED OVER TO SUMMARY | D137: =SUM(D112:D136) -> 1
A139: F) | B139: SAFETY EQUIPMENTS :
A140: 1.0 | B140: Providing and fixing NO SMOKING & DANGER ZONE signboards. | C140: Nos | D140: 2
A142: 2.0 | B142: Providing and fixing 2 no. fire bucket of 9 lit. capacity made of 24 gauge MS sheet with floor standing MS stand. | C142: Nos | D142: 2
A144: 3.0 | B144: Providing and fixing ISI marked CO2 4.5 Kg. Capacity as per latest IS. | C144: Nos | D144: 2
A146: 4.0 | B146: Providing and fixing ISI marked Chemical foam type of 9 liters as per latest IS (trolley marker). | C146: Nos | D146: 2
A148: 5.0 | B148: Providing and fixing ISI marked Dry chemical powder type (5 Kg.) as per latest IS. | C148: Nos | D148: 2
A150: 6.0 | B150: Supply and fixing of approved shock treatment chart in position & written in English and Hindi. The chart shall be framed using wooden frame and glass. | C150: Nos | D150: 2
A152: 7.0 | B152: Insulating Mats
A154: 7.1 | B154: Supply, installation, testing commissioning of Insulating Mats of size 1m x 2m x 2mm for AC rms voltage grade up to 1.1 kV with dielectric strength of C Class, fire retarded complete in all respect. | C154: Nos | D154: 2
B156: TOTAL CARRIED OVER TO SUMMARY
A158: G) | B158: CABLE TRAYS & RACEWAYS:-
A159: 1 | B159: Cable tray
B160: Providing and fixing of the following Hot dip Galvanised cable tray alongwith necessary coupler plates, nuts, bolts and washer with the following specifications, including cost of providing and fixing supporting steel structure hanging arrangement as mentioned below along with dash fastners, nuts, bolts and washers etc. for suspending cable trays. (All accessories like tees, bends vertical / horizontal shall be factory fabricated and cost of these to be included in the rate. Site fabricated accessories are not acceptable).
A162: 1.1 | B162: Perforated Type
A164: a) | B164: 300mm(W) x 40 mm (D) | C164: RM | D164: 20
A165: b) | B165: 150mm(W) x 40 mm (D) | C165: RM | D165: 100
B167: TOTAL CARRIED OVER TO SUMMARY
A169: H) | B169: EARTHING SYSTEM
A171: 1 | B171: EARTHING STATION
B172: Body earthing for Bailer Machine, Extruder Machine, Agglome ration Machine, Shredder Machine, Fatka Machine, Segregation Belt Machine.
A173: 1.1 | B173: Supply, installation, testing and commissioning of UL listed CPRI Tested maintenance free copper coated earth rod of 3 metre having diameter of 17.2mm with 250 micron copper coating with clamp made of stainless steel or gun metal for terminating cable / flat conductor. Earth enhancing mineral (PROCEM) compound 25 kg tested for Leaching & TCLP with NABL accredited lab. The systems is conforming to IS 3043, IS / IEC 62305, IEC 61643-5-54, UL 467, the rod has to be tested to for dimention, marking, tensile strength, salt mist, coating thickness, electrical resistivity test before and after corresion test etc as per IEC 62561-2. | C173: Set | D173: 10
A175: 1.2 | B175: Supply, installation, testing and commissioning of Heavy Duty chamber with cover made on polypropylene material with tested to carry 5000 Kg with pulling hook size approx 300x300 mm | C175: Set | D175: 0
A178: 2 | B178: EARTHING STRIP/WIRES:
B179: Supply & laying of hot dipped GI/pure copper earthing strip to connect to the DBS, Poles and equipment's in outdoor yard and also in indoor portion of substation.
A180: i | B180: 25 x 5 mm GI strip | C180: RM | D180: 100
A181: ii | B181: 32 x 6 mm GI strip | C181: RM | D181: 70
A182: vi | B182: 8 SWG GI wire | C182: RM | D182: 20
B184: TOTAL CARRIED OVER TO SUMMARY
A186: I) | B186: LT PANELS & DISTRIBUTION BOARDS
B187: FRONT OPERATED PANEL
B188: NOTE: ALL ACBs ARE REQUIRED WITH SAFETY SHUTTER, UNDER VOLTAGE RELEASE / SHUNT TRIP
B189: General Note for all Panels
A190: Note 1 | B190: The Panels/ Switch-boards shall be fabricated out of (load bearing member of 2mm and non load bearing member 1.6 mm thick) CRCA sheet steel, Compartmentised design, modular construction with Form 4b separation for Main Panels & 3b for remaining, Mounting Plates and Internal Partition shall be made of 1.6/2.0mm Aluzinc sheet for better heat dessipation clear space of 300mm or as approved shall be left at the bottom.The operating handle of the topmost switch shall not be higher than 1800mm from the finished floor and maximum height of panels shall not more than 2400mm.The Panel shall be Powder coated to paint of desired shadend in an approved manner.
A191: Note 2 | B191: Undervoltage Relay (27)
A192: Note 3 | B192: Reverse power RELAY (32)
A193: Note 4 | B193: Inverse Definite minimum time overcurrent earth fault relay
A194: Note 5 | B194: Overvoltage Relay (59)
A195: Note 6 | B195: Bucholz protection (only transformer switch ) (63)
A196: Note 7 | B196: Emergency stop on Main panel
A197: Note 8 | B197: All incomers and Bus coupler panel door should be different colour coded for identification and mimic diagram in front of panel should be marks by reflector paints
A198: Note 9 | B198: All ACB terminals shall have vertical-vertical configuration for termination of incoming & outgoing bus links. All MCCB’s up to 630A shall be provided with rear stud type terminations.
A199: Note 10 | B199: Space heater, Thermostat, On/Off switch, LED Lamp , Door operated switch.
A200: Note 11 | B200: UL Listed Linear pneumatic heat Detection Tube with all necessary fittings & supports.Master Control Unit for controlling each system, complete with pressure switches, buzzers and electronic hooters, including all necessary accessories + electrical Receiving ,fixing and drawing wiring to make each entire system functional including Suitable Cyllinder
A201: Note 12 | B201: All ACBs shall have protection Releases with LSIG.
A202: Note 13 | B202: All Multifunction meters shall communication on ethernet through ethernet ports and shall have % THD and individual harmonics till 15 order
A203: Note 14 | B203: ON Indication Light for all Outgoings. with backup MCB (refer SLD)
A204: Note 15 | B204: All MCCB should be having Thermal Magnetic based Release UP TO 250 Amp and above 250 amp With Microprocessor Release,Ics=100%Icu with Rotary Handle. Fault Level minimum 25KA
A205: 1.0 | B205: MRF MAIN PANEL
A206: 1.01 | B206: Fabrication, Supply, Erection, Testing and commissioning of outdoor type cubicle pattern LT Switch-Board with a rupturing capacity of 50 KA at 415 V or as called for in individual items, openable in front and back suitable for 3 phase, 4 wire, 50Hz AC supply at an ambient temperature of 45 C. The cubicle should be outdoor type, dust proof, vermin proof, well ventilated and enclosure protection shall be IP-55 as per IS 2147-1962.or as per CPWD specifications, ( Part IV - Sub-station) and IS: 8623 The cubicle should be front operated, floor mounted, free standing with compartments in tier formation, extensible on both sides. The panel to be provided with PVC Sleeved TPN Electrolytic Al. Bus Bar and PVC insulated solid interconnections and also provided with 50x6mm. horizontal tinned copper Earth Bus Bars in each section.
A207: A | B207: Main Incomer
B208: 1 Nos 500A FP MCCB 36kA With Microprocessor Based Release (O/C,S/C,E/F) Protection & all Accessories in each :
B209: 1 No Under Voltage Relay (27)
B210: 1 No Over Voltage Relay (59)
B211: 1 No. Breaker Control Switch
B212: 1 Nos Multifinction Meter Without RS-485 port
B213: 1 set C.T's 500/5Amp , CL 1.0, 15VA for meter
B214: 1 set C.T's 500/5Amp , CL 1.0, 15VA for APFCR
B215: 1 set Phase Indicating LED Lamps with backup MCB
B216: 1 ses ON,OFF,TRIP indicating LED Lamps with backup MCB.
B217: Control SP MCB
B218: 1 no emergency stop push button switch (to control whole panel)
A219: B | B219: BUSBAR :-
B220: FP aluminium bus bars of minimum 630 Amp with heat shrinkable coloured sleeves , Shrouds at Joints and including DMC/SMC bus bars supports at required interval complete for cross section, side supports and their spacing
A221: C | B221: OUTGOING
B222: Note:
B223: All MCCB should be having Thermal Magnetic based Release ,Ics=100%Icu with Rotary Handle. Fault Level minimum 36KA
B224: ON,OFF,TRIP Indication Light for all Outgoings. with backup MCB
B225: 2 Nos. 63Amps TP+N ,MCCB with Thermal Magnetic Release adjustable with rotary handle. One spare
B226: 4 Nos. 100Amps TP+N ,MCCB with Thermal Magnetic Release adjustable with rotary handle. One spare
B227: 2 Nos. 200Amps TP+N ,MCCB with Thermal Magnetic Release adjustable with rotary handle. One spare
B228: Miscellaneous items
B229: 2 nos door switch
B230: 2 nos illumination lights with 6 A,10kA MCB
B231: ILLUMINATION LED WITH HOLDER & DOOR SWITCH
B232: 2 nos 6" dia exhaust fan with thermostate & suitable canopy
B233: Internal illumination in Cable alleys with Door operated switch.
B234: MRF MAIN PANEL as described above | C234: set | D234: 1
A236: 3.00 | B236: ISOLATOR BOX
B237: 2 Nos. 63Amps TP+N ,MCCB with Thermal Magnetic Release adjustable with rotary handle. With wheatherproof cubical box | C237: set | D237: 2
B238: 3 Nos. 100Amps TP+N ,MCCB with Thermal Magnetic Release adjustable with rotary handle. With wheatherproof cubical box | C238: set | D238: 3
B239: 1 Nos. 200Amps TP+N ,MCCB with Thermal Magnetic Release adjustable with rotary handle. With wheatherproof cubical box | C239: set | D239: 1
B241: TOTAL CARRIED OVER TO SUMMARY
A243: J) | B243: LT CABLES & TERMINATION :
A244: 1.1 | B244: L.T CABLES
B245: Supply, laying, testing and commissioning of 1100 Volt grade XLPE insulated extruded PVC inner and outer sheathed armoured cables conforming to IS 7098 amended upto date including the cost of providing required gap between adjacent cables (minimum one cable dia.) and including the cost of providing identification tags etc. complete as per specification, as required.
A246: a) | B246: 3.5C x 300 sq mm Aluminium | C246: RM
A247: b) | B247: 3.5C x 240 sq mm Aluminium | C247: RM | D247: 20
A248: c) | B248: 3.5C x 185 sq mm Aluminium | C248: RM
A249: d) | B249: 3.5C x 150 sq mm Aluminium | C249: RM
A250: e) | B250: 3.5C x 50 sq mm Aluminium | C250: RM | D250: 40
A251: f) | B251: 3.5C x 25 sq mm Aluminium | C251: RM
A252: g) | B252: 4C x 25 sq mm Aluminium | C252: RM | D252: 160
A253: h) | B253: 4C x 16 sq mm Aluminium | C253: RM
A254: i) | B254: 4C x 10 sq mm Aluminium | C254: RM
A255: j) | B255: 3C x 10 sq mm Aluminium | C255: RM
A256: k) | B256: 2C x 6 sq mm Aluminium | C256: RM
A258: 1.2 | B258: Cable termination :
A260: 1.2.1 | B260: Supplying, installation of all materials for terminations of 1.1 KV grade copper/aluminium multicore cables. The work includes cable glanding using brass plated , sizing the core leads, removing insulation, fixing suitable crimping type copper lugs/thimbles by using hydraulic crimping tools with correct size of the dies, shaping the leads and neatly connecting the same to the equipment terminals.
A262: a) | B262: 3.5C x 300 sq mm Aluminium double compression gland | C262: Set
... 16 more rows

Sheet PAVER BLOCK
A1: MRF Shed-UJJAIN
A2: PAVER BLOCK
A3: S.No | B3: Area detail | C3: Unit | D3: Num | E3: L | F3: B | G3: H | H3: Qty | I3: Unit Rate | J3: Amount
A4: (A) | B4: SUBSTRUCTURE
A5: 1 | B5: PAVER BLOCK
B6: Providing and laying factory made chamfered edge Cement Concrete paver blocks, of required strength, thickness & size/ shape, made by table vibratory method using PU mould, laid in required colour & pattern over 50mm thick compacted bed of sand, compacting and proper embedding/laying of inter locking paver blocks into the sand bedding layer through vibratory compaction by using plate vibrator, filling the joints with sand and cutting of paver blocks as per required size and pattern, finishing and sweeping extra sand. complete all as per direction of Engineer-in-Charge. (80mm thick cement concrete paver block of M-35 grade with approved colour, design & pattern.)
B8: FLOOR | C8: CUM | D8: 1 | E8: 2084 | G8: 0.08 | H8: =E8*G8 -> 166.72
A10: Grand Total (Rs.)
